fUST/lending_fUST_20250225
["ID","MTS","AMOUNT","RATE_DAILY","PERIOD"]
[354355854,1740441046802,-500.0,0.00014273,2]
[354355855,1740441046815,-500.0,0.00014273,2]
[354355856,1740441046833,-500.0,0.00014273,2]
[354355857,1740441046845,-500.0,0.00014273,2]
[354355858,1740441046858,-500.0,0.00014273,2]
[354355859,1740441046871,-2899.3,0.00014273,2]
[354355860,1740441046883,-824.84,0.00014273,2]
[354355861,1740441046896,-6430.29,0.00014273,2]
[354355862,1740441046910,-500.0,0.00014273,2]
[354355864,1740441046922,-500.0,0.00014273,2]
[354355866,1740441046935,-1001.05,0.00014273,2]
[354355868,1740441046949,-500.0,0.00014273,2]
[354355869,1740441046961,-500.0,0.00014273,2]
[354355870,1740441046975,-500.0,0.00014273,2]
[354355871,1740441046987,-2218.42,0.00014273,2]
[354355872,1740441047000,-1737.35,0.00014273,2]
[354355873,1740441047014,-4570.99,0.00014273,2]
[354355874,1740441047026,-500.0,0.00014273,2]
[354355875,1740441047039,-1640.72,0.00014273,2]
[354355876,1740441047053,-1252.67,0.00014273,2]
[354355877,1740441047065,-500.0,0.00014273,2]
[354355878,1740441047078,-500.0,0.00014273,2]
[354355879,1740441047091,-835.21,0.00014273,2]
[354355880,1740441047103,-11443.39,0.00014273,2]
[354355881,1740441047115,-500.0,0.00014273,2]
[354355882,1740441047129,-2291.83,0.00014273,2]
[354355883,1740441047141,-500.0,0.00014273,2]
[354355884,1740441047154,-632.72305517,0.00014273,2]
[354355885,1740441047166,-1006.94,0.00014273,2]
[354355886,1740441047179,-500.0,0.00014273,2]
[354355887,1740441047192,-717.23,0.00014273,2]
[354355888,1740441047204,-2844.11,0.00014273,2]
[354355889,1740441047217,-35565.69,0.00014273,2]
[354355890,1740441047230,-500.0,0.00014273,2]
[354355891,1740441047242,-372.30581874,0.00014273,2]
[354355892,1740441047255,-760.04,0.00014273,2]
[354355893,1740441047267,-500.0,0.00014273,2]
[354355894,1740441047280,-803.88190982,0.00014324,2]
[354355895,1740441047293,-152.27744119,0.00014338,2]
[354355896,1740441047306,-152.27744119,0.00014338,2]
[354355897,1740441047320,-152.27744119,0.00014338,2]
[354355898,1740441047330,-152.27744119,0.00014338,2]
[354355899,1740441047340,-152.27744119,0.00014338,2]
[354355900,1740441047349,-152.27744119,0.00014338,2]
[354355901,1740441047358,-152.27744119,0.00014338,2]
[354355902,1740441047368,-152.27744119,0.00014338,2]
[354355903,1740441047378,-152.27744119,0.00014338,2]
[354355904,1740441047387,-152.27744119,0.00014338,2]
[354355905,1740441047397,-152.27744119,0.00014338,2]
[354355906,1740441047406,-152.27744119,0.00014338,2]
[354355907,1740441047416,-152.27744119,0.00014338,2]
[354355908,1740441047425,-152.27744119,0.00014338,2]
[354355909,1740441047435,-152.27744119,0.00014338,2]
[354355910,1740441047445,-152.27744119,0.00014338,2]
[354355911,1740441047454,-152.27744119,0.00014338,2]
[354355912,1740441047464,-152.27,0.00014338,2]
[354355913,1740441047474,-500.0,0.00014356,2]
[354355914,1740441047484,-500.0,0.00014356,2]
[354355915,1740441047493,-500.0,0.00014356,2]
[354355916,1740441047503,-500.0,0.00014356,2]
[354355917,1740441047776,-500.0,0.00014356,2]
[354355918,1740441047792,-411.9940382,0.00014356,2]
[354355919,1740441047803,-660.34,0.00014356,2]
[354355920,1740441047812,-500.0,0.00014356,2]
[354355921,1740441047825,-500.0,0.00014356,2]
[354355922,1740441047834,-500.0,0.00014356,2]
[354355923,1740441047847,-500.0,0.00014356,2]
[354355924,1740441047856,-500.0,0.00014356,2]
[354355925,1740441047866,-500.0,0.00014356,2]
[354355926,1740441047876,-1121.66,0.00014356,2]
[354355927,1740441047886,-500.0,0.00014356,2]
[354355928,1740441047896,-972.02,0.00014356,2]
[354355929,1740441047906,-746.06,0.00014356,2]
[354355930,1740441047917,-562.3,0.00014356,2]
[354355931,1740441047926,-500.0,0.00014356,2]
[354355932,1740441047936,-500.0,0.00014356,2]
[354355933,1740441047946,-1020.63,0.00014356,2]
[354355934,1740441047955,-500.0,0.00014356,2]
[354355935,1740441047966,-1274.13,0.00014356,2]
[354355936,1740441047976,-500.0,0.00014356,2]
[354355937,1740441047986,-500.0,0.00014356,2]
[354355938,1740441047995,-2717.54,0.00014356,2]
[354355939,1740441048009,-1434.69,0.00014356,2]
[354355940,1740441048019,-775.62,0.00014356,2]
[354355941,1740441048028,-500.0,0.00014356,2]
[354355942,1740441048038,-500.0,0.00014356,2]
[354355943,1740441048048,-802.29,0.00014356,2]
[354355944,1740441048058,-1801.35,0.00014356,2]
[354355945,1740441048070,-517.77,0.00014356,2]
[354355946,1740441048080,-608.68,0.00014356,2]
[354355947,1740441048089,-3977.84,0.00014356,2]
[354355948,1740441048099,-11335.04,0.00014356,2]
[354355949,1740441048109,-580.24,0.00014356,2]
[354355950,1740441048119,-1009.36,0.00014356,2]
[354355951,1740441048132,-500.0,0.00014356,2]
[354355952,1740441048141,-500.0,0.00014356,2]
[354355953,1740441048152,-1090.05,0.00014356,2]
[354355954,1740441048162,-500.0,0.00014356,2]
[354355955,1740441048172,-500.0,0.00014356,2]
[354355956,1740441048182,-500.0,0.00014356,2]
[354355957,1740441048192,-500.0,0.00014356,2]
[354355958,1740441048202,-2899.3,0.00014356,2]
[354355959,1740441048211,-824.84,0.00014356,2]
[354355960,1740441048221,-6430.29,0.00014356,2]
[354355961,1740441048231,-515.91,0.00014356,2]
[354355962,1740441048241,-500.0,0.00014356,2]
[354355963,1740441048251,-1001.05,0.00014356,2]
[354355964,1740441048261,-500.0,0.00014356,2]
[354355965,1740441048270,-500.0,0.00014356,2]
[354355966,1740441048280,-500.0,0.00014356,2]
[354355967,1740441048290,-2218.42,0.00014356,2]
[354355968,1740441048300,-1737.35,0.00014356,2]
[354355969,1740441048310,-4570.99,0.00014356,2]
[354355970,1740441048321,-500.0,0.00014356,2]
[354355971,1740441048331,-1640.72,0.00014356,2]
[354355972,1740441048340,-1252.67,0.00014356,2]
[354355973,1740441048350,-500.0,0.00014356,2]
[354355974,1740441048361,-500.0,0.00014356,2]
[354355975,1740441048371,-835.21,0.00014356,2]
[354355976,1740441048382,-11443.39,0.00014356,2]
[354355977,1740441048392,-500.0,0.00014356,2]
[354355978,1740441048403,-2291.83,0.00014356,2]
[354355979,1740441048414,-500.0,0.00014356,2]
[354355980,1740441048424,-1006.94,0.00014356,2]
[354355981,1740441048434,-549.02,0.00014356,2]
[354355982,1740441048444,-717.23,0.00014356,2]
[354355983,1740441048455,-2844.11,0.00014356,2]
[354355984,1740441048466,-35565.69,0.00014356,2]
[354355985,1740441048477,-500.0,0.00014356,2]
[354355986,1740441048488,-760.04,0.00014356,2]
[354355987,1740441048500,-500.0,0.00014356,2]
[354355988,1740441048511,-300.0,0.000144,5]
[354355989,1740441048522,-500.0,0.00014438,2]
[354355990,1740441048533,-500.0,0.00014438,2]
[354355991,1740441048544,-500.0,0.00014438,2]
[354355992,1740441048554,-500.0,0.00014438,2]
[354355993,1740441048564,-500.0,0.00014438,2]
[354355994,1740441048576,-660.34,0.00014438,2]
[354355995,1740441048587,-500.0,0.00014438,2]
[354355996,1740441048598,-406.43,0.00014438,2]
[354355997,1740441048609,-500.0,0.00014438,2]
[354355998,1740441048619,-500.0,0.00014438,2]
[354355999,1740441048629,-500.0,0.00014438,2]
[354356000,1740441048640,-1121.66,0.00014438,2]
[354356001,1740441048649,-500.0,0.00014438,2]
[354356002,1740441048659,-972.02,0.00014438,2]
[354356003,1740441048669,-746.06,0.00014438,2]
[354356004,1740441048679,-562.3,0.00014438,2]
[354356005,1740441048688,-500.0,0.00014438,2]
[354356006,1740441048698,-500.0,0.00014438,2]
[354356007,1740441048708,-1020.63,0.00014438,2]
[354356008,1740441048717,-500.0,0.00014438,2]
[354356009,1740441048727,-1274.13,0.00014438,2]
[354356010,1740441048736,-500.0,0.00014438,2]
[354356011,1740441048746,-2717.54,0.00014438,2]
[354356012,1740441048756,-1434.69,0.00014438,2]
[354356013,1740441048766,-775.62,0.00014438,2]
[354356014,1740441048776,-500.0,0.00014438,2]
[354356015,1740441048787,-802.29,0.00014438,2]
[354356016,1740441048798,-1801.35,0.00014438,2]
[354356017,1740441048808,-517.77,0.00014438,2]
[354356018,1740441048818,-3977.84,0.00014438,2]
[354356019,1740441048835,-11335.04,0.00014438,2]
[354356020,1740441048846,-580.24,0.00014438,2]
[354356021,1740441048856,-1009.36,0.00014438,2]
[354356022,1740441048867,-500.0,0.00014438,2]
[354356023,1740441048877,-500.0,0.00014438,2]
[354356024,1740441048888,-1090.05,0.00014438,2]
[354356025,1740441048898,-500.0,0.00014438,2]
[354356026,1740441048909,-203.72,0.00014438,2]
[354356027,1740441048920,-500.0,0.00014438,2]
[354356028,1740441048930,-500.0,0.00014438,2]
[354356029,1740441048940,-2899.3,0.00014438,2]
[354356030,1740441048950,-824.84,0.00014438,2]
[354356031,1740441048960,-6430.29,0.00014438,2]
[354356032,1740441048970,-1001.05,0.00014438,2]
[354356033,1740441048979,-500.0,0.00014438,2]
[354356034,1740441048989,-2218.42,0.00014438,2]
[354356035,1740441048999,-1737.35,0.00014438,2]
[354356036,1740441049010,-4570.99,0.00014438,2]
[354356037,1740441049020,-500.0,0.00014438,2]
[354356038,1740441049030,-1640.72,0.00014438,2]
[354356039,1740441049041,-1252.67,0.00014438,2]
[354356040,1740441049052,-500.0,0.00014438,2]
[354356041,1740441049064,-500.0,0.00014438,2]
[354356042,1740441049075,-835.21,0.00014438,2]
[354356043,1740441049086,-11443.39,0.00014438,2]
[354356044,1740441049097,-500.0,0.00014438,2]
[354356045,1740441049110,-2291.83,0.00014438,2]
[354356046,1740441049120,-356.64,0.00014438,2]
[354356047,1740441049131,-1006.94,0.00014438,2]
[354356048,1740441049143,-717.23,0.00014438,2]
[354356049,1740441049154,-2844.11,0.00014438,2]
[354356050,1740441049165,-35565.69,0.00014438,2]
[354356051,1740441049176,-500.0,0.00014438,2]
[354356052,1740441049187,-760.04,0.00014438,2]
[354356053,1740441049198,-559.98,0.00014438,2]
[354356054,1740441049209,-151.0,0.000145,2]
[354356055,1740441049221,-500.0,0.0001452,2]
[354356056,1740441049232,-500.0,0.0001452,2]
[354356057,1740441049242,-500.0,0.0001452,2]
[354356058,1740441049253,-500.0,0.0001452,2]
[354356059,1740441049264,-500.0,0.0001452,2]
[354356060,1740441049275,-660.34,0.0001452,2]
[354356061,1740441049285,-500.0,0.0001452,2]
[354356062,1740441049295,-500.0,0.0001452,2]
[354356063,1740441049305,-500.0,0.0001452,2]
[354356064,1740441049315,-1121.66,0.0001452,2]
[354356065,1740441049329,-500.0,0.0001452,2]
[354356066,1740441049339,-972.02,0.0001452,2]
[354356067,1740441049349,-746.06,0.0001452,2]
[354356068,1740441049359,-562.3,0.0001452,2]
[354356069,1740441049369,-500.0,0.0001452,2]
[354356070,1740441049378,-471.14,0.0001452,2]
[354356071,1740441049388,-1020.63,0.0001452,2]
[354356072,1740441049397,-500.0,0.0001452,2]
[354356073,1740441049407,-1274.13,0.0001452,2]
[354356074,1740441049417,-500.0,0.0001452,2]
[354356075,1740441049427,-2717.54,0.0001452,2]
[354356076,1740441049437,-1434.69,0.0001452,2]
[354356077,1740441049447,-775.62,0.0001452,2]
[354356078,1740441049458,-500.0,0.0001452,2]
[354356079,1740441049468,-802.29,0.0001452,2]
[354356080,1740441049478,-1801.35,0.0001452,2]
[354356081,1740441049488,-517.77,0.0001452,2]
[354356082,1740441049498,-3977.84,0.0001452,2]
[354356083,1740441049507,-11335.04,0.0001452,2]
[354356084,1740441049517,-580.24,0.0001452,2]
[354356085,1740441049526,-1009.36,0.0001452,2]
[354356086,1740441049535,-500.0,0.0001452,2]
[354356087,1740441049546,-1090.05,0.0001452,2]
[354356088,1740441049555,-500.0,0.0001452,2]
[354356089,1740441049564,-500.0,0.0001452,2]
[354356090,1740441049575,-500.0,0.0001452,2]
[354356091,1740441049585,-2899.3,0.0001452,2]
[354356092,1740441049594,-824.84,0.0001452,2]
[354356093,1740441049603,-6430.29,0.0001452,2]
[354356094,1740441049613,-1001.05,0.0001452,2]
[354356095,1740441049623,-500.0,0.0001452,2]
[354356096,1740441049632,-2218.42,0.0001452,2]
[354356097,1740441049642,-1737.35,0.0001452,2]
[354356098,1740441049651,-4570.99,0.0001452,2]
[354356099,1740441049661,-500.0,0.0001452,2]
[354356100,1740441049671,-1640.72,0.0001452,2]
[354356101,1740441049681,-1252.67,0.0001452,2]
[354356102,1740441049691,-500.0,0.0001452,2]
[354356103,1740441049701,-500.0,0.0001452,2]
[354356104,1740441049710,-835.21,0.0001452,2]
[354356105,1740441049719,-11443.39,0.0001452,2]
[354356106,1740441049729,-500.0,0.0001452,2]
[354356107,1740441049739,-2291.83,0.0001452,2]
[354356108,1740441049748,-1006.94,0.0001452,2]
[354356109,1740441049758,-717.23,0.0001452,2]
[354356110,1740441049768,-2844.11,0.0001452,2]
[354356111,1740441049778,-35565.69,0.0001452,2]
[354356112,1740441049788,-509.16,0.0001452,2]
[354356113,1740441049798,-760.04,0.0001452,2]
[354356114,1740441049807,-500.0,0.00014602,2]
[354356115,1740441049817,-500.0,0.00014602,2]
[354356116,1740441049831,-500.0,0.00014602,2]
[354356117,1740441049843,-500.0,0.00014602,2]
[354356118,1740441049853,-500.0,0.00014602,2]
[354356119,1740441049863,-660.34,0.00014602,2]
[354356120,1740441049874,-500.0,0.00014602,2]
[354356121,1740441049883,-500.0,0.00014602,2]
[354356122,1740441049893,-1121.66,0.00014602,2]
[354356123,1740441049903,-500.0,0.00014602,2]
[354356124,1740441049912,-972.02,0.00014602,2]
[354356125,1740441049923,-746.06,0.00014602,2]
[354356126,1740441049934,-562.3,0.00014602,2]
[354356127,1740441049944,-500.0,0.00014602,2]
[354356128,1740441049954,-1020.63,0.00014602,2]
[354356129,1740441049964,-500.0,0.00014602,2]
[354356130,1740441049973,-1274.13,0.00014602,2]
[354356131,1740441049983,-500.0,0.00014602,2]
[354356132,1740441049993,-2717.54,0.00014602,2]
[354356133,1740441050002,-1434.69,0.00014602,2]
[354356134,1740441050012,-775.62,0.00014602,2]
[354356135,1740441050023,-500.0,0.00014602,2]
[354356136,1740441050033,-802.29,0.00014602,2]
[354356137,1740441050043,-1801.35,0.00014602,2]
[354356138,1740441050052,-517.77,0.00014602,2]
[354356139,1740441050062,-3977.84,0.00014602,2]
[354356140,1740441050071,-11335.04,0.00014602,2]
[354356141,1740441050081,-580.24,0.00014602,2]
[354356142,1740441050091,-1009.36,0.00014602,2]
[354356143,1740441050101,-500.0,0.00014602,2]
[354356144,1740441050110,-1090.05,0.00014602,2]
[354356145,1740441050120,-500.0,0.00014602,2]
[354356146,1740441050130,-500.0,0.00014602,2]
[354356147,1740441050140,-500.0,0.00014602,2]
[354356148,1740441050150,-2899.3,0.00014602,2]
[354356149,1740441050160,-824.84,0.00014602,2]
[354356150,1740441050170,-6430.29,0.00014602,2]
[354356151,1740441050181,-1001.05,0.00014602,2]
[354356152,1740441050191,-500.0,0.00014602,2]
[354356153,1740441050202,-2218.42,0.00014602,2]
[354356154,1740441050212,-1737.35,0.00014602,2]
[354356155,1740441050222,-4570.99,0.00014602,2]
[354356156,1740441050233,-431.0,0.00014602,2]
[354356157,1740441050243,-1640.72,0.00014602,2]
[354356158,1740441050254,-1252.67,0.00014602,2]
[354356159,1740441050265,-500.0,0.00014602,2]
[354356160,1740441050275,-500.0,0.00014602,2]
[354356161,1740441050286,-835.21,0.00014602,2]
[354356162,1740441050296,-11443.39,0.00014602,2]
[354356163,1740441050307,-500.0,0.00014602,2]
[354356164,1740441050317,-2291.83,0.00014602,2]
[354356165,1740441050333,-1006.94,0.00014602,2]
[354356166,1740441050343,-717.23,0.00014602,2]
[354356167,1740441050353,-2844.11,0.00014602,2]
[354356168,1740441050363,-35565.69,0.00014602,2]
[354356169,1740441050373,-760.04,0.00014602,2]
[354356170,1740441050383,-520.37326856,0.00014623,2]
[354356171,1740441050392,-496.364,0.00014681,2]
[354356172,1740441050401,-500.0,0.00014684,2]
[354356173,1740441050411,-150.61,0.00014684,2]
[354356174,1740441050420,-246.32,0.00014684,2]
[354356175,1740441050430,-500.0,0.00014684,2]
[354356176,1740441050440,-500.0,0.00014684,2]
[354356177,1740441050450,-660.34,0.00014684,2]
[354356178,1740441050459,-500.0,0.00014684,2]
[354356179,1740441050468,-500.0,0.00014684,2]
[354356180,1740441050478,-1121.66,0.00014684,2]
[354356181,1740441050487,-500.0,0.00014684,2]
[354356182,1740441050497,-972.02,0.00014684,2]
[354356183,1740441050506,-746.06,0.00014684,2]
[354356184,1740441050515,-562.3,0.00014684,2]
[354356185,1740441050525,-500.0,0.00014684,2]
[354356186,1740441050535,-1020.63,0.00014684,2]
[354356187,1740441050544,-500.0,0.00014684,2]
[354356188,1740441050554,-1274.13,0.00014684,2]
[354356189,1740441050564,-316.34,0.00014684,2]
[354356190,1740441050575,-2717.54,0.00014684,2]
[354356191,1740441050585,-1434.69,0.00014684,2]
[354356192,1740441050594,-775.62,0.00014684,2]
[354356193,1740441050603,-500.0,0.00014684,2]
[354356194,1740441050613,-802.29,0.00014684,2]
[354356195,1740441050623,-1801.35,0.00014684,2]
[354356196,1740441050632,-517.77,0.00014684,2]
[354356197,1740441050642,-3977.84,0.00014684,2]
[354356198,1740441050651,-11335.04,0.00014684,2]
[354356199,1740441050661,-580.24,0.00014684,2]
[354356200,1740441050671,-1009.36,0.00014684,2]
[354356201,1740441050680,-500.0,0.00014684,2]
[354356202,1740441050689,-1090.05,0.00014684,2]
[354356203,1740441050699,-500.0,0.00014684,2]
[354356204,1740441050708,-500.0,0.00014684,2]
[354356205,1740441050717,-500.0,0.00014684,2]
[354356206,1740441050727,-2899.3,0.00014684,2]
[354356207,1740441050736,-824.84,0.00014684,2]
[354356208,1740441050746,-6430.29,0.00014684,2]
[354356209,1740441050755,-1001.05,0.00014684,2]
[354356210,1740441050764,-500.0,0.00014684,2]
[354356211,1740441050774,-2218.42,0.00014684,2]
[354356212,1740441050784,-1737.35,0.00014684,2]
[354356213,1740441050794,-4570.99,0.00014684,2]
[354356214,1740441050804,-1640.72,0.00014684,2]
[354356215,1740441050815,-1252.67,0.00014684,2]
[354356216,1740441050827,-500.0,0.00014684,2]
[354356217,1740441050838,-500.0,0.00014684,2]
[354356218,1740441050848,-835.21,0.00014684,2]
[354356219,1740441050859,-11443.39,0.00014684,2]
[354356220,1740441050870,-500.0,0.00014684,2]
[354356221,1740441050881,-2291.83,0.00014684,2]
[354356222,1740441050891,-1006.94,0.00014684,2]
[354356223,1740441050902,-717.23,0.00014684,2]
[354356224,1740441050911,-2844.11,0.00014684,2]
[354356225,1740441050923,-35565.69,0.00014684,2]
[354356226,1740441050933,-760.04,0.00014684,2]
[354356227,1740441050943,-151.0,0.000147,2]
[354356228,1740441050952,-1000.0,0.00014721,2]
[354356229,1740441050962,-1000.0,0.00014721,2]
[354356230,1740441050973,-1000.0,0.00014721,2]
[354356231,1740441050983,-500.0,0.00014767,2]
[354356232,1740441050993,-387.74,0.00014767,2]
[354356233,1740441051004,-500.0,0.00014767,2]
[354356234,1740441051014,-660.34,0.00014767,2]
[354356235,1740441051024,-197.87,0.00014767,2]
[354356236,1740441051034,-500.0,0.00014767,2]
[354356237,1740441051043,-1121.66,0.00014767,2]
[354356238,1740441051053,-644.97,0.00014767,2]
[354356239,1740441051065,-972.02,0.00014767,2]
[354356240,1740441051078,-746.06,0.00014767,2]
[354356241,1740441051227,-562.3,0.00014767,2]
[354356242,1740441051265,-500.0,0.00014767,2]
[354356243,1740441051275,-1020.63,0.00014767,2]
[354356244,1740441051285,-500.0,0.00014767,2]
[354356245,1740441051295,-1274.13,0.00014767,2]
[354356246,1740441051304,-2717.54,0.00014767,2]
[354356247,1740441051314,-1434.69,0.00014767,2]
[354356248,1740441051326,-775.62,0.00014767,2]
[354356249,1740441051336,-500.0,0.00014767,2]
[354356250,1740441051346,-802.29,0.00014767,2]
[354356251,1740441051356,-1801.35,0.00014767,2]
[354356252,1740441051366,-517.77,0.00014767,2]
[354356253,1740441051375,-3977.84,0.00014767,2]
[354356254,1740441051385,-10127.80029285,0.00014767,2]
[354356255,1740441051486,-1207.23970715,0.00014767,2]
[354356256,1740441051496,-580.24,0.00014767,2]
[354356257,1740441051506,-1009.36,0.00014767,2]
[354356258,1740441051516,-500.0,0.00014767,2]
[354356259,1740441051525,-1090.05,0.00014767,2]
[354356260,1740441051535,-500.0,0.00014767,2]
[354356261,1740441051544,-227.53597572,0.00014767,2]
[354356262,1740441051553,-500.0,0.00014767,2]
[354356263,1740441051563,-2899.3,0.00014767,2]
[354356264,1740441051575,-824.84,0.00014767,2]
[354356265,1740441051584,-6430.29,0.00014767,2]
[354356266,1740441051593,-1001.05,0.00014767,2]
[354356267,1740441051603,-500.0,0.00014767,2]
[354356268,1740441051612,-1093.78525468,0.00014767,2]
[354356269,1740441051856,-500.0,0.00013698,2]
[354356270,1740441051866,-500.0,0.0001378,2]
[354356271,1740441051876,-500.0,0.00013863,2]
[354356272,1740441051886,-500.0,0.00013945,2]
[354356273,1740441051896,-1124.63474532,0.00014767,2]
[354356274,1740441051907,-1737.35,0.00014767,2]
[354356275,1740441051916,-4570.99,0.00014767,2]
[354356276,1740441051927,-1640.72,0.00014767,2]
[354356277,1740441051937,-1252.67,0.00014767,2]
[354356278,1740441051947,-500.0,0.00014767,2]
[354356279,1740441051956,-500.0,0.00014767,2]
[354356280,1740441051966,-835.21,0.00014767,2]
[354356281,1740441051977,-11443.39,0.00014767,2]
[354356282,1740441051987,-500.0,0.00014767,2]
[354356283,1740441051997,-2291.83,0.00014767,2]
[354356284,1740441052007,-1006.94,0.00014767,2]
[354356285,1740441052018,-717.23,0.00014767,2]
[354356286,1740441052028,-2844.11,0.00014767,2]
[354356287,1740441052038,-35565.69,0.00014767,2]
[354356288,1740441052049,-760.04,0.00014767,2]
[354356289,1740441052060,-151.0,0.000148,2]
[354356290,1740441052071,-1331.77041912,0.00014843,2]
[354356291,1740441052083,-500.0,0.00014849,2]
[354356292,1740441052094,-500.0,0.00014849,2]
[354356293,1740441052104,-660.34,0.00014849,2]
[354356294,1740441052115,-580.49,0.00014849,2]
[354356295,1740441052125,-1121.66,0.00014849,2]
[354356296,1740441052136,-972.02,0.00014849,2]
[354356297,1740441052146,-746.06,0.00014849,2]
[354356298,1740441052156,-562.3,0.00014849,2]
[354356299,1740441052166,-500.0,0.00014849,2]
[354356300,1740441052176,-1020.63,0.00014849,2]
[354356301,1740441052186,-641.32614041,0.00014849,2]
[354356302,1740441052195,-2717.54,0.00014849,2]
[354356303,1740441052205,-1434.69,0.00014849,2]
[354356304,1740441052215,-775.62,0.00014849,2]
[354356305,1740441052225,-500.0,0.00014849,2]
[354356306,1740441052235,-802.29,0.00014849,2]
[354356307,1740441052245,-1801.35,0.00014849,2]
[354356308,1740441052255,-517.77,0.00014849,2]
[354356309,1740441052265,-3977.84,0.00014849,2]
[354356310,1740441052275,-11335.04,0.00014849,2]
[354356311,1740441052285,-580.24,0.00014849,2]
[354356312,1740441052295,-1009.36,0.00014849,2]
[354356313,1740441052305,-642.6856387,0.00014849,2]
[354356314,1740441052314,-1090.05,0.00014849,2]
[354356315,1740441052326,-500.0,0.00014849,2]
[354356316,1740441052336,-500.0,0.00014849,2]
[354356317,1740441052345,-2899.3,0.00014849,2]
[354356318,1740441052355,-824.84,0.00014849,2]
[354356319,1740441052364,-6430.29,0.00014849,2]
[354356320,1740441052374,-1001.05,0.00014849,2]
[354356321,1740441052383,-500.0,0.00014849,2]
[354356322,1740441052393,-2218.42,0.00014849,2]
[354356323,1740441052403,-1737.35,0.00014849,2]
[354356324,1740441052412,-4570.99,0.00014849,2]
[354356325,1740441052422,-1640.72,0.00014849,2]
[354356326,1740441052433,-1252.67,0.00014849,2]
[354356327,1740441052442,-500.0,0.00014849,2]
[354356328,1740441052452,-500.0,0.00014849,2]
[354356329,1740441052462,-835.21,0.00014849,2]
[354356330,1740441052472,-11443.39,0.00014849,2]
[354356331,1740441052483,-500.0,0.00014849,2]
[354356332,1740441052492,-2291.83,0.00014849,2]
[354356333,1740441052502,-1006.94,0.00014849,2]
[354356334,1740441052511,-717.23,0.00014849,2]
[354356335,1740441052520,-2844.11,0.00014849,2]
[354356336,1740441052531,-35565.69,0.00014849,2]
[354356337,1740441052541,-760.04,0.00014849,2]
[354356338,1740441052551,-432.64665824,0.000149,2]
[354356339,1740441052560,-383551.424247,0.000149,2]
[354356340,1740441052570,-500.0,0.00014931,2]
[354356341,1740441052581,-500.0,0.00014931,2]
[354356342,1740441052591,-660.34,0.00014931,2]
[354356343,1740441052600,-1121.66,0.00014931,2]
[354356344,1740441052609,-972.02,0.00014931,2]
[354356345,1740441052619,-746.06,0.00014931,2]
[354356346,1740441052628,-562.3,0.00014931,2]
[354356347,1740441052638,-390.51,0.00014931,2]
[354356348,1740441052647,-1020.63,0.00014931,2]
[354356349,1740441052657,-2717.54,0.00014931,2]
[354356350,1740441052666,-1434.69,0.00014931,2]
[354356351,1740441052676,-775.62,0.00014931,2]
[354356352,1740441052686,-500.0,0.00014931,2]
[354356353,1740441052696,-802.29,0.00014931,2]
[354356354,1740441052706,-1801.35,0.00014931,2]
[354356355,1740441052717,-517.77,0.00014931,2]
[354356356,1740441052727,-3977.84,0.00014931,2]